Cogmind - Beta 16 --- EXPLORER MODE // 2026.02.04 @ 15:03:56 Player: NeoBioHazard Result: Destroyed by 5V-1BQ(R) with Subdweller Laser Performance ------------- Evolutions (0) 0 Regions Visited (3) 600 Robots Destroyed (24) 120 Value Destroyed (725) 725 Prototype IDs (2) 40 Alien Tech Used (0) 0 Bonus (95) 95 TOTAL SCORE: 1580 Bonus ------- Follower Combat Kills 95 Cogmind --------- Core Integrity 0/250 Matter 296/300 Energy 250/250 System Corruption 0% Temperature Cool (6) Movement Rolling (115) Ox1 Location -10/Subcaves Parts ------- > --- POWER (1) -------- Ion Engine > --- PROPULSION (2) --- Compact Wheel > --- UTILITY (3) ------ Improved Heat Sink Medium Storage Unit Targeting Computer > --- WEAPON (2) ------- Subdweller Machine Gun Subdweller Machine Gun > --- INVENTORY (10) --- Light Ion Engine Terrain Scanner Targeting Computer Light Armor Plating Small Laser Light Assault Rifle Light Assault Rifle Light Assault Rifle Light Assault Rifle Peak State ------------ > --- POWER ------------ Improved Ion Engine > --- PROPULSION ------- Aluminum Leg Aluminum Leg > --- UTILITY ---------- Improved Heat Sink Medium Storage Unit Targeting Computer > --- WEAPON ----------- Small Laser Subdweller Laser > --- INVENTORY -------- Ion Engine Light Ion Engine Aluminum Leg Terrain Scanner Targeting Computer Light Armor Plating Small Laser Light Assault Rifle Light Assault Rifle Light Assault Rifle [Rating: 13] Favorites ----------- Power Ion Engine Engine Ion Engine Propulsion Aluminum Leg Leg Aluminum Leg Wheel Compact Wheel Utility Medium Storage Unit Device Improved Heat Sink Storage Medium Storage Unit Processor Targeting Computer Protection Light Armor Plating Weapon Small Laser Energy Gun Small Laser Ballistic Gun Light Assault Rifle Build | -11 -10 -10 -10 ------- Run | Yrd Mat Min Sub Slots Evolved 1 | . 1 . . Power . | . . . . Propulsion . | . . . . Utility 1 | . 1 . . Weapon . | . . . . Parts Attached 20 | 8 4 1 7 Power 4 | 2 1 . 1 Engine 4 | 2 1 . 1 Core . | . . . . Reactor . | . . . . Propulsion 5 | 2 2 . 1 Treads . | . . . . Leg 4 | 2 2 . . Wheel 1 | . . . 1 Hover . | . . . . Flight . | . . . . Utility 4 | 2 1 1 . Device 1 | . . 1 . Storage 1 | 1 . . . Processor 1 | . 1 . . Hackware . | . . . . Protection 1 | 1 . . . Artifact . | . . . . Weapon 7 | 2 . . 5 Energy Gun 3 | 2 . . 1 Energy Cannon . | . . . . Ballistic Gun 4 | . . . 4 Ballistic Cannon . | . . . . Launcher . | . . . . Special Weapon . | . . . . Impact Weapon . | . . . . Slashing Weapon . | . . . . Piercing Weapon . | . . . . Special Melee Weapon . | . . . . Unidentified Prototypes . | . . . . Parts Lost 6 | . . 1 5 Power 1 | . . . 1 Propulsion 3 | . . . 3 Utility 1 | . . 1 . Weapon 1 | . . . 1 Highest Loss Streak 4 | . . 1 4 To Critical Strikes . | . . . . Average Backups 8 | 2 7 10 8 Power 1 | . 1 2 1 Propulsion . | . 1 1 . Utility 2 | 1 2 3 3 Weapon 3 | . 2 4 3 Tool/Special . | . . . . Unused Backups 6 | . . . 6 Power . | . . . . Propulsion . | . . . . Utility 3 | . . . 3 Weapon 3 | . . . 3 Tool/Special . | . . . . Average Slot Usage (%) 95 | . 100 99 90 Engine 11 | . 12 12 11 Leg 20 | . 25 25 14 Device 7 | . . 6 12 Storage 12 | . 12 12 12 Processor 12 | . 12 12 12 Protection 4 | . 12 5 . Energy Gun 16 | . 25 25 7 Ballistic Gun 8 | . . . 17 Peak Build Rating 13 | 7 9 11 13 Average Rating 9 | 5 8 10 10 On Entrance 6 | . 7 9 11 Avg Prop Armor Cover (%) . | . . . . Naked Turns . | . . . . Heaviest Build 24 | 21 21 21 24 Greatest Support 20 | 20 20 20 20 Greatest Overweight (x) 7 | 1 1 1 7 Average Overweight (x) . | . 1 . 1 Largest Inventory Capacity 10 | 10 10 10 10 Average Capacity 9 | 8 10 10 10 Most Carried 10 | 5 10 10 10 Average Carried 8 | 2 7 10 8 Final Capacity 10 | 10 10 10 10 Final Carried 10 | 5 10 10 9 Class Distribution -------------------- 100% | Hacker-Mutant Dominant Class ---------------- Hacker-Mutant | -10/Materials Hacker-Mutant | -10/Mines Hacker-Mutant | -10/Subcaves Resources | -11 -10 -10 -10 ----------- Run | Yrd Mat Min Sub Matter Collected 500 | 233 87 10 170 Remotely . | . . . . Salvage Created 853 | . 329 53 471 Parts 52 | . 16 5 31 Haulers Intercepted . | . . . . Recyclers Shooed . | . . . . Parts Field Recycled . | . . . . Retrieved Matter . | . . . . Parts Self-Destructed . | . . . . Prevented . | . . . . Parts Restored . | . . . . Kills | -11 -10 -10 -10 ------- Run | Yrd Mat Min Sub Combat Hostiles Destroyed 18 | . 4 1 13 Guns 16 | . 3 1 12 Classes Destroyed 7 | . 3 1 3 Worker 1 | . . 1 . Recycler 1 | . 1 . . Turret 2 | . . . 2 Watcher 2 | . 2 . . Swarmer 3 | . . . 3 Grunt 5 | . 4 1 . Subdweller 10 | . . . 10 Best Kill Streak 3 | . 3 1 3 Combat Bots Only 3 | . 2 1 3 Max Kills in Single Turn 1 | . 1 1 1 Gunslinging . | . . . . Exploded . | . . . . Melee . | . . . . Uniques/NPCs Destroyed . | . . . . Combat | -11 -10 -10 -10 -------- Run | Yrd Mat Min Sub Hostile Shots Fired 202 | . 24 9 169 Missed 60 | . 5 . 55 Hits 142 | . 19 9 114 Projectile 142 | . 19 9 114 Critical Strikes 3 | . 1 . 2 Damage Taken 1184 | . 152 68 964 Core 258 | . 7 14 237 Absorbed by Shields . | . . . . Ignored by Resistances 740 | . 92 46 602 Core Remaining (%) 100 | 100 . . . Volleys Fired 95 | . 22 9 64 Largest 2 | . 2 2 2 Hottest 100 | . 90 90 100 Shots Fired 187 | . 44 18 125 Gun 187 | . 44 18 125 Cannon . | . . . . Launcher . | . . . . Special . | . . . . Kinetic 69 | . . . 69 Thermal 118 | . 44 18 56 Explosive . | . . . . Electromagnetic . | . . . . Robot Hit Streak 36 | . 13 13 36 Robot Miss Streak 2 | . 2 2 1 Penetration Max . | . . . . Secondary Targets 2 | . . . 2 Max Gunslinging Chain 1 | . . . 1 Shots Hit Robots 162 | . 36 15 111 Core Hits 49 | . 12 4 33 Critical Kills . | . . . . Critical Parts Destroyed . | . . . . Critical Strikes 6 | . 3 . 3 Burn 4 | . 3 . 1 Destroy 2 | . . . 2 Melee Attacks . | . . . . Impact . | . . . . Slashing . | . . . . Piercing . | . . . . Sneak Attacks . | . . . . Combat Hostiles . | . . . . Follow-up Attacks . | . . . . Damage Inflicted 2082 | . 456 190 1436 Guns 2081 | . 455 190 1436 Cannons . | . . . . Explosions . | . . . . Melee . | . . . . Ramming 1 | . 1 . . Kinetic 771 | . . . 771 Thermal 1310 | . 455 190 665 Explosive . | . . . . Electromagnetic . | . . . . Impact . | . . . . Slashing . | . . . . Piercing . | . . . . Highest Corruption . | . . . . Average Corruption . | . . . . Corruption Purged . | . . . . Corruption Blocked . | . . . . Overload Shots . | . . . . Overflow Damage . | . . . . Projectiles . | . . . . Explosions . | . . . . Melee . | . . . . Knockbacks . | . . . . Impact . | . . . . Kinetic . | . . . . Secondary . | . . . . Self-Inflicted Damage . | . . . . Shots . | . . . . Rammed . | . . . . Targets Rammed 1 | . 1 . . Kicked 1 | . 1 . . Crushed . | . . . . Highest Temperature 364 | . 364 135 4 Average Temperature 107 | . 122 59 4 Received Heat Transfer 750 | . 156 60 534 Effects 1 | . 1 . . Shutdowns 1 | . 1 . . Siege Activations . | . . . . Martial Activations . | . . . . Shielding Activations . | . . . . Robots Disrupted . | . . . . Combat Hostiles . | . . . . Robots Corrupted . | . . . . Combat Hostiles . | . . . . Parts Fried . | . . . . Impact Corruptions . | . . . . Robots Melted 2 | . 1 . 1 Combat Hostiles 2 | . 1 . 1 Parts Melted 8 | . 1 1 6 Heat Transferred 3376 | . 1387 496 1493 Parts Sabotaged . | . . . . Parts Stolen . | . . . . Parts Stripped . | . . . . Power Chain Reactions . | . . . . Alert | -11 -10 -10 -10 ------- Run | Yrd Mat Min Sub Maximum Alert Level . | . . . . Low Security (%) 100 | 100 100 100 . Level 1 . | . . . . Level 2 . | . . . . Level 3 . | . . . . Level 4 . | . . . . Level 5 . | . . . . High Security . | . . . . Max Security . | . . . . Peak Influence 52 | . 48 52 . Initial . | . . . . Average 2 | . 4 1 . Influence Increases 486 | . 158 108 220 Destroy 0b10 Robot/C 260 | . 80 80 100 Destroy 0b10 Robot/NC 20 | . 15 5 . Destroy Leader 44 | . 24 20 . Allied During Kill 3 | . . 3 . Successful Hack 39 | . 39 . . Lose Combat Pursuer 120 | . . . 120 Influence Decreases 486 | . 158 108 220 Time Decay 411 | . 143 88 180 Lost Part 40 | . . . 40 Lost Ally 20 | . . 20 . Purge Threat 15 | . 15 . . Squads Dispatched . | . . . . Investigation . | . . . . Extermination . | . . . . Reinforcement . | . . . . Assault . | . . . . Garrison . | . . . . Intercept . | . . . . Searches Triggered . | . . . . Construction Impeded . | . . . . Haulers Reinforced . | . . . . Active Scanning Responses . | . . . . Cargo Convoy Interrupts . | . . . . Stealth | -11 -10 -10 -10 --------- Run | Yrd Mat Min Sub Distress Signals . | . . . . Communications Jammed . | . . . . Distress Signals . | . . . . Times Spotted 36 | . 9 4 23 Peak Tracking Total 4 | . 2 2 4 Tactical Retreats 4 | . . . 4 Traps | -11 -10 -10 -10 ------- Run | Yrd Mat Min Sub Traps Triggered . | . . . . Indirectly . | . . . . Trap Hack Attempts . | . . . . Triggered . | . . . . Disarmed . | . . . . Reprogrammed . | . . . . Reused . | . . . . Traps Extracted . | . . . . Installed . | . . . . Triggered . | . . . . Machines | -11 -10 -10 -10 ---------- Run | Yrd Mat Min Sub Machines Disabled . | . . . . Max in Single Turn . | . . . . Machines Repaired . | . . . . Machines Dismantled . | . . . . Machines Sabotaged . | . . . . Overloaded Fab Kills . | . . . . Hacking | -11 -10 -10 -10 --------- Run | Yrd Mat Min Sub Machines Accessed 10 | . 8 1 1 Terminals 8 | . 8 . . Fabricators . | . . . . Repair Stations . | . . . . Recycling Units . | . . . . Scanalyzers . | . . . . Garrison Access . | . . . . Total Hacks 46 | . 40 1 5 Successful 34 | . 28 1 5 Failed 12 | . 12 . . Catastrophic 1 | . 1 . . Database Lockouts . | . . . . Manual 20 | . 20 . . Terminals 40 | . 40 . . Fabricators . | . . . . Repair Stations . | . . . . Recycling Units . | . . . . Scanalyzers . | . . . . Garrison Access . | . . . . Terminal Hacks 27 | . 21 1 5 Record 5 | . . . 5 Robot Analysis 3 | . 3 . . Prototype ID Bank 1 | . 1 . . Open Door 1 | . . 1 . Branch Access Points 2 | . 2 . . Terminal Index 1 | . 1 . . Alert Level 1 | . 1 . . Unreport Threat 4 | . 4 . . Locate Traps 4 | . 4 . . Security Status 1 | . 1 . . Assault Status 1 | . 1 . . Recall Investigation 1 | . 1 . . Hauler Manifests 1 | . 1 . . Registered Prototypes 1 | . 1 . . Fabricator Hacks . | . . . . Repair Station Hacks . | . . . . Recycling Unit Hacks . | . . . . Scanalyzer . | . . . . Garrison Access Hacks . | . . . . Unauthorized Hacks 7 | . 7 . . Terminals 7 | . 7 . . Botnet 2 | . 2 . . Skim 5 | . 5 . . Fabricators . | . . . . Repair Stations . | . . . . Recycling Units . | . . . . Scanalyzers . | . . . . Garrison Access . | . . . . Data Cores Recovered . | . . . . Used . | . . . . Hacking Detections 8 | . 8 . . Full Trace Events . | . . . . Feedback Events . | . . . . Feedback Blocked . | . . . . Robot Schematics Acquired . | . . . . Robots Built . | . . . . Authchips . | . . . . Time . | . . . . Total Robot Build Rating . | . . . . Part Schematics Acquired . | . . . . Parts Built . | . . . . Authchips . | . . . . Time . | . . . . Total Part Build Rating . | . . . . Part Studies Acquired . | . . . . Parts Repaired . | . . . . Time . | . . . . Parts Recycled . | . . . . Recycled Matter . | . . . . Retrieved Matter . | . . . . Retrieved Components . | . . . . Parts Scanalyzed . | . . . . Part Schematics Acquired . | . . . . Parts Damaged . | . . . . Bothacking | -11 -10 -10 -10 ------------ Run | Yrd Mat Min Sub Used RIF Installer . | . . . . Robots Hacked . | . . . . Non-combat . | . . . . Combat . | . . . . Robot Hacks Applied . | . . . . Relay Couplers Released . | . . . . Fabnet Peak Effective % . | . . . . Robots Rewired . | . . . . Allies Hacked . | . . . . Hacks Repelled . | . . . . Allies | -11 -10 -10 -10 -------- Run | Yrd Mat Min Sub Total Allies 4 | . . 4 . Largest Group 3 | . . 3 1 Highest-Rated Group 40 | . . 40 8 Highest-Rated Ally 31 | . . 31 8 Total Orders . | . . . . Ally Attacks 27 | . . 25 2 Total Damage 267 | . . 243 24 Kills 3 | . . 3 . Allies Corrupted . | . . . . Allies Melted . | . . . . Intel | -11 -10 -10 -10 ------- Run | Yrd Mat Min Sub Active Infowar (turns) . | . . . . Robot Analysis Total 3 | . 3 . . Derelict Logs Recovered 2 | . . 2 . Drone Launches . | . . . . Drone Recoveries . | . . . . Exploration | -11 -10 -10 -10 ------------- Run | Yrd Mat Min Sub Turns Passed 3301 | 97 751 1014 1439 Spaces Moved 1674 | 52 345 651 626 Core 10 | 4 . . 6 Treads . | . . . . Legs 1594 | 48 345 651 550 Wheels 70 | . . . 70 Hover . | . . . . Flight . | . . . . Fastest Speed 50 | 50 190 120 115 Average Speed 170 | 158 190 146 186 Slowest Speed 400 | 190 190 190 400 Overloaded Moves . | . . . . Propulsion Burnouts . | . . . . Robots Hopped . | . . . . Potential Cave-ins . | . . . . Cave-ins Triggered . | . . . . Exploration Rate (%) 59 | 4 82 98 54 Regions Visited 3 Branch Regions 2 Pre-discovered Areas 2 | . . 1 1 Known Exits Taken 3 | 1 1 1 . Unknown Exits Taken . | . . . . Scrap Searched 5 | . . 2 3 Spaces Dug . | . . . . Terrain Destroyed . | . . . . Melee . | . . . . Projectile . | . . . . AOE . | . . . . Terrain Rammed . | . . . . Walls Destroyed . | . . . . Machines Disabled . | . . . . Actions | -11 -10 -10 -10 --------- Run | Yrd Mat Min Sub Total 1934 | 63 395 695 781 Wait 134 | . 19 35 80 Move 1671 | 51 344 650 626 Hop . | . . . . Pick Up 8 | 4 4 . . Fast Attach 9 | 7 . 1 1 Attach 4 | . 1 . 3 Detach . | . . . . Swap 9 | 1 3 . 5 Drop 3 | . 1 . 2 Fire 95 | . 22 9 64 Melee . | . . . . Ram . | . . . . Kick 1 | . 1 . . Crush . | . . . . Escape Stasis . | . . . . Rewire . | . . . . Trap . | . . . . Miscellaneous . | . . . . Route ------- -11/Scrapyard -10/Materials (discovered 6 exits: *Mat x3 / *Min x2 / Sub) -10/Mines (discovered 3 exits: *Mat x2 / *Sub) -10/Subcaves (discovered 3 exits: *Mat x2 / *Rec) History --------- Turn | Location | Event 2 | -11/Scrapyard | Met Revision 17 11 | -11/Scrapyard | Identified exit to Materials 11 | -11/Scrapyard | Discovered exit to Materials (range 15) 98 | -11/Scrapyard | Entered Materials 98 | -10/Materials | Evolved 1 slot: Utility x1 105 | -10/Materials | Identified exit to Mines 309 | -10/Materials | Build established: Hacker-Mutant 378 | -10/Materials | Identified exit to Materials 378 | -10/Materials | Discovered exit to Materials (range 15) 635 | -10/Materials | Identified exit to Subcaves 672 | -10/Materials | Discovered exit to Materials (range 16) 690 | -10/Materials | Learned 4 Subcaves zone layouts 796 | -10/Materials | Learned Storage emergency access door positions 809 | -10/Materials | Learned location of 1 exit from Recycling 849 | -10/Materials | Entered Mines 859 | -10/Mines | Assisted by bots powering up and referring to "LRC-V3" 1021 | -10/Mines | Found the Drone Emporium 1111 | -10/Mines | Learned location of Zion (-6) 1138 | -10/Mines | Learned Materials garrison access intel 1284 | -10/Mines | Discovered exit to Materials (range 7) 1305 | -10/Mines | Discovered exit to Materials (range 12) 1307 | -10/Mines | Found a hidden stash of uninstalled traps 1384 | -10/Mines | Discovered exit to Subcaves (range 9) 1593 | -10/Mines | Received a Mining Laser from a helpful Derelict 1863 | -10/Mines | Entered Subcaves 1863 | -10/Subcaves | Accompanied by 1 ally 1864 | -10/Subcaves | Approached by a straggling Scientist 1864 | -10/Subcaves | Identified exit to Materials 1899 | -10/Subcaves | Ambushed by Subdwellers from Twisted Machinery 1980 | -10/Subcaves | Visited Clippyterm 1983 | -10/Subcaves | Learned location of Section 7 (-2) 1983 | -10/Subcaves | Learned Factory garrison access intel 2028 | -10/Subcaves | Shifting Twisted Machinery released Sub. Laser 2032 | -10/Subcaves | Shifting Twisted Machinery released Mak. Light Armor Plating 2039 | -10/Subcaves | Shifting Twisted Machinery released Mak. Power Source 2198 | -10/Subcaves | Identified exit to Recycling 2198 | -10/Subcaves | Discovered exit to Recycling (range 10) 2249 | -10/Subcaves | Core integrity fell below 50% 2350 | -10/Subcaves | Lost 4 parts (1p2n1w) 2666 | -10/Subcaves | A swath of the cavern ceiling suddenly collapsed 2950 | -10/Subcaves | Core integrity fell below 20% 3261 | -10/Subcaves | Discovered exit to Materials (range 10) 3302 | -10/Subcaves | Destroyed by 5V-1BQ(R) with Subdweller Laser Last Messages --------------- 02968_ Found 42 Matter. 02971_ Searching scrap... 02971_ Found Mak. Sword. 02971_ Found Spk. Treads. 02971_ Found 64 Matter. 02976_ Subatomizers dissect the Spk. Treads. 03058_ 4Z-HHI(R): "SUBHATE!" 03077_ 4Z-HHI(R) suffers critical hit (Destroy). 03083_ 4Z-HHI(R) destroyed. 03094_ Acquired 9 matter. 03108_ Acquired 10 matter. 03164_ Aluminum Leg destroyed. 03188_ FA-L0V(R) destroyed. 03195_ GB-0OS(R) affixes Scrap Shield Fragment to Scrap Shield. 03197_ GB-0OS(R) destroyed. 03204_ Acquired 27 matter. 03208_ Acquired 1 matter. 03216_ Acquired Com. Wheel. 03218_ Acquired 10 matter. 03261_ EXIT=FOUND: MATERIALS Map ----- +----------------------------------------------------+ | ???????????????## #?????????? | | ???????????????## ###???????? | | ???????????????# ### #???????? | | ???????????????# ##?# #???????? | | ???????????????## ### #???????? | | ????????????????# ## #### ##???????? | | ???????????????## #??## ##????????? | | ???????????????# #???######???????? | | ???????????????## ##?????# ##??????? | | ????????????????## ##???## #??????? | | ?????????????????## ##?## #??????? | | ??????????????????## < ### #??????? | | ???????????????????# ##??????? | | ????????????????##?### ##???????? | | ???????????????## #?## #####????????? | | ???????????????# ## #????????????? | | ???????????????# ##????????????? | | ???????????????## ####?????????????? | | ????????????????### ##????????????????? | | ???????????????#### #?????????????????? | | ??????????????## ##????????????????? | | ??????????????# #????????????????? | | ??????????????## O #????????????????? | | ?????????#??### #????????????????? | | ?????????# #$#< #????????????????? | | ??????????# &R @ ##???????????????? | | ?????????#$&<##< #???????????????? | | ?????????# $?# #???????????????? | | ?????????????### #???????????????? | | ???????????????# ##???????????????? | | ???????????????# #????????????????? | | ???????????????## #????????????????? | | ????????????????## ##????????????????? | | ?????????????????# ##?????????????????? | | ?????????????????# |#??????????????????? | | ?????????????????" $#??????????????????? | | ????????????????? ??????????????????? | | ?????????????????& " ??????????????????? | | ????????????????? #?????????????????? | | ????????????????? ?????????????????? | | ?????????????????& ## ?????????????????? | | ?????????????????##?? ?????????????????? | | ????????????????????? ?????????????????? | | ???????????????????????????????????????? | | ???????????????????????????????????????? | | ???????????????????????????????????????? | | ???????????????????????????????????????? | | ???????????????????????????????????????? | | ???????????????????????????????????????? | | ???????????????????????????????????????? | +----------------------------------------------------+ Best States ------------- Heat Dissipation 39 Energy Generation 12 Energy Capacity 265 Matter Stores 300 Matter Capacity 300 Sight Range 16 Terrain Scan Density 10 Armor Coverage 150 Resistance: KI 35 Resistance: TH 35 Resistance: EX 35 Resistance: EM 35 Resistance: I 35 Resistance: S 35 Resistance: P 35 Evasion (%) 55 Targeting Accuracy 5 Offensive Hacking 20 Item Schematics ----------------- None Robot Schematics ------------------ None Fabricated ------------ Nothing Repaired ---------- Nothing Studied --------- None Alien Tech Used ----------------- None Achievements -------------- None Challenges ------------ None Game ------ Seed ImpulseNanofilamentsEdition Manual? 0 Play Time 00:20:17 Cumulative 174.4 hours Start 2026.02.04 @ 14:48:35 End 2026.02.04 @ 15:03:56 Sessions 1 Manual Loads 0 Difficulty Explorer Special Mode None Game No. 315 Rogue 216 Adventurer 15 Explorer 84 Win Type - Total 13 Types 13/0/0/0/0/0/0/0/0/0 Lore% 54 Gallery% 61 Achievement% 46 Wizard Run 0 Options --------- Layout 0 ASCII 0 Keyboard 1 Movement Numpad Keybinds 0 Fullscreen 2 Font 18/SmallcapsGlow Map View 76x50 Zoom Use 0% Tactical HUD 1 Map Filters NONE Filters NONE Steam 1 RUN: 838499ea-e1b1-402b-9959-d33e5c1fb8dd